{"text_format":"3","workbook":"xlsx","n_sheets":7,"sheets":["Lundi","Mardi","Mercredi","Jeudi","Vendredi","Samedi","Dimanche"],"not_rendered":{"defined_names":21},"read":"whole","date_system":"1900"}

{"sheet":"Lundi","index":0,"n_rows":10,"n_cols":13,"rows_kept":10,"merged":[[0,1,0,4],[1,2,1,4],[2,2,2,4]]}
[null,"Planning"]
[null,"Semaine du : ","Date"]
[null,"Nom du service : ","Nom"]
[]
[null,"LUNDI","7:00","8:00","9:00","10:00","11:00","12:00","13:00","14:00","15:00","Maladie ?","TOTAL"]
[null,"Nom 1","responsable","responsable","responsable","responsable","responsable","responsable","responsable","responsable","responsable",null,{"$f":"COUNTIF(Lundi[[#This Row],[7:00]:[15:00]],\"*\")","v":9}]
[null,"Nom 2",null,"hôte de caisse","hôte de caisse","hôte de caisse","hôte de caisse",{"$nulls":5},{"$f":"COUNTIF(Lundi[[#This Row],[7:00]:[15:00]],\"*\")","v":4}]
[null,"Nom 3",null,"réception","réception","réception","réception ","réception","réception","réception",null,null,{"$f":"COUNTIF(Lundi[[#This Row],[7:00]:[15:00]],\"*\")","v":7}]
[null,"Nom 4",null,"réception","réception","réception","réception ","réception","réception","réception",null,null,{"$f":"COUNTIF(Lundi[[#This Row],[7:00]:[15:00]],\"*\")","v":7}]
[null,"Nom 5",{"$nulls":9},"Maladie",{"$f":"COUNTIF(Lundi[[#This Row],[7:00]:[15:00]],\"*\")","v":0}]

{"sheet":"Mardi","index":1,"n_rows":10,"n_cols":13,"rows_kept":10,"merged":[[0,1,0,4],[1,2,1,4],[2,2,2,4]]}
[null,"Planning"]
[null,"Semaine du : ",{"$f":"Lundi!C2","v":"Date"}]
[null,"Nom du service : ",{"$f":"Lundi!C3","v":"Nom"}]
[]
[null,"MARDI","7:00","8:00","9:00","10:00","11:00","12:00","13:00","14:00","15:00","Maladie ?","TOTAL"]
[null,"Nom 1","responsable","responsable","responsable","responsable","responsable","responsable","responsable","responsable","responsable",null,{"$f":"COUNTIF(Mardi[[#This Row],[7:00]:[15:00]],\"*\")","v":9}]
[null,"Nom 2",null,"hôte de caisse","hôte de caisse","hôte de caisse","hôte de caisse",{"$nulls":5},{"$f":"COUNTIF(Mardi[[#This Row],[7:00]:[15:00]],\"*\")","v":4}]
[null,"Nom 3",null,"réception","réception","réception","réception ","réception","réception","réception",null,null,{"$f":"COUNTIF(Mardi[[#This Row],[7:00]:[15:00]],\"*\")","v":7}]
[null,"Nom 4",null,"réception","réception","réception","réception ","réception","réception","réception",null,null,{"$f":"COUNTIF(Mardi[[#This Row],[7:00]:[15:00]],\"*\")","v":7}]
[null,"Nom 5",{"$nulls":9},"Maladie",{"$f":"COUNTIF(Mardi[[#This Row],[7:00]:[15:00]],\"*\")","v":0}]

{"sheet":"Mercredi","index":2,"n_rows":10,"n_cols":13,"rows_kept":10,"merged":[[0,1,0,4],[1,2,1,4],[2,2,2,4]]}
[null,"Planning"]
[null,"Semaine du : ",{"$f":"Lundi!C2","v":"Date"}]
[null,"Nom du service : ",{"$f":"Lundi!C3","v":"Nom"}]
[]
[null,"MERCREDI","7:00","8:00","9:00","10:00","11:00","12:00","13:00","14:00","15:00","Maladie ?","TOTAL"]
[null,"Nom 1","responsable","responsable","responsable","responsable","responsable","responsable","responsable","responsable","responsable",null,{"$f":"COUNTIF(Mercredi[[#This Row],[7:00]:[15:00]],\"*\")","v":9}]
[null,"Nom 2",null,"hôte de caisse","hôte de caisse","hôte de caisse","hôte de caisse",{"$nulls":5},{"$f":"COUNTIF(Mercredi[[#This Row],[7:00]:[15:00]],\"*\")","v":4}]
[null,"Nom 3",null,"réception","réception","réception","réception ","réception","réception","réception",null,null,{"$f":"COUNTIF(Mercredi[[#This Row],[7:00]:[15:00]],\"*\")","v":7}]
[null,"Nom 4",null,"réception","réception","réception","réception ","réception","réception","réception",null,null,{"$f":"COUNTIF(Mercredi[[#This Row],[7:00]:[15:00]],\"*\")","v":7}]
[null,"Nom 5",{"$nulls":9},"Maladie",{"$f":"COUNTIF(Mercredi[[#This Row],[7:00]:[15:00]],\"*\")","v":0}]

{"sheet":"Jeudi","index":3,"n_rows":10,"n_cols":13,"rows_kept":10,"merged":[[0,1,0,4],[1,2,1,4],[2,2,2,4]]}
[null,"Planning"]
[null,"Semaine du : ",{"$f":"Lundi!C2","v":"Date"}]
[null,"Nom du service : ",{"$f":"Lundi!C3","v":"Nom"}]
[]
[null,"JEUDI","7:00","8:00","9:00","10:00","11:00","12:00","13:00","14:00","15:00","Maladie ?","TOTAL"]
[null,"Nom 1","responsable","responsable","responsable","responsable","responsable","responsable","responsable","responsable","responsable",null,{"$f":"COUNTIF(Jeudi[[#This Row],[7:00]:[15:00]],\"*\")","v":9}]
[null,"Nom 2",null,"hôte de caisse","hôte de caisse","hôte de caisse","hôte de caisse",{"$nulls":5},{"$f":"COUNTIF(Jeudi[[#This Row],[7:00]:[15:00]],\"*\")","v":4}]
[null,"Nom 3",null,"réception","réception","réception","réception ","réception","réception","réception",null,null,{"$f":"COUNTIF(Jeudi[[#This Row],[7:00]:[15:00]],\"*\")","v":7}]
[null,"Nom 4",null,"réception","réception","réception","réception ","réception","réception","réception",null,null,{"$f":"COUNTIF(Jeudi[[#This Row],[7:00]:[15:00]],\"*\")","v":7}]
[null,"Nom 5",{"$nulls":9},"Maladie",{"$f":"COUNTIF(Jeudi[[#This Row],[7:00]:[15:00]],\"*\")","v":0}]

{"sheet":"Vendredi","index":4,"n_rows":10,"n_cols":13,"rows_kept":10,"merged":[[0,1,0,4],[1,2,1,4],[2,2,2,4]]}
[null,"Planning"]
[null,"Semaine du : ",{"$f":"Lundi!C2","v":"Date"}]
[null,"Nom du service : ",{"$f":"Lundi!C3","v":"Nom"}]
[]
[null,"VENDREDI","7:00","8:00","9:00","10:00","11:00","12:00","13:00","14:00","15:00","Maladie ?","TOTAL"]
[null,"Nom 1","responsable","responsable","responsable","responsable","responsable","responsable","responsable","responsable","responsable",null,{"$f":"COUNTIF(Vendredi[[#This Row],[7:00]:[15:00]],\"*\")","v":9}]
[null,"Nom 2",null,"hôte de caisse","hôte de caisse","hôte de caisse","hôte de caisse",{"$nulls":5},{"$f":"COUNTIF(Vendredi[[#This Row],[7:00]:[15:00]],\"*\")","v":4}]
[null,"Nom 3",null,"réception","réception","réception","réception ","réception","réception","réception",null,null,{"$f":"COUNTIF(Vendredi[[#This Row],[7:00]:[15:00]],\"*\")","v":7}]
[null,"Nom 4",null,"réception","réception","réception","réception ","réception","réception","réception",null,null,{"$f":"COUNTIF(Vendredi[[#This Row],[7:00]:[15:00]],\"*\")","v":7}]
[null,"Nom 5",{"$nulls":9},"Maladie",{"$f":"COUNTIF(Vendredi[[#This Row],[7:00]:[15:00]],\"*\")","v":0}]

{"sheet":"Samedi","index":5,"n_rows":10,"n_cols":13,"rows_kept":10,"merged":[[0,1,0,4],[1,2,1,4],[2,2,2,4]]}
[null,"Planning"]
[null,"Semaine du : ",{"$f":"Lundi!C2","v":"Date"}]
[null,"Nom du service : ",{"$f":"Lundi!C3","v":"Nom"}]
[]
[null,"SAMEDI","7:00","8:00","9:00","10:00","11:00","12:00","13:00","14:00","15:00","Maladie ?","TOTAL"]
[null,"Nom 1","responsable","responsable","responsable","responsable","responsable","responsable","responsable","responsable","responsable",null,{"$f":"COUNTIF(Samedi[[#This Row],[7:00]:[15:00]],\"*\")","v":9}]
[null,"Nom 2",null,"hôte de caisse","hôte de caisse","hôte de caisse","hôte de caisse",{"$nulls":5},{"$f":"COUNTIF(Samedi[[#This Row],[7:00]:[15:00]],\"*\")","v":4}]
[null,"Nom 3",null,"réception","réception","réception","réception ","réception","réception","réception",null,null,{"$f":"COUNTIF(Samedi[[#This Row],[7:00]:[15:00]],\"*\")","v":7}]
[null,"Nom 4",null,"réception","réception","réception","réception ","réception","réception","réception",null,null,{"$f":"COUNTIF(Samedi[[#This Row],[7:00]:[15:00]],\"*\")","v":7}]
[null,"Nom 5",{"$nulls":9},"Maladie",{"$f":"COUNTIF(Samedi[[#This Row],[7:00]:[15:00]],\"*\")","v":0}]

{"sheet":"Dimanche","index":6,"n_rows":10,"n_cols":13,"rows_kept":10,"merged":[[0,1,0,4],[1,2,1,4],[2,2,2,4]]}
[null,"Planning"]
[null,"Semaine du : ",{"$f":"Lundi!C2","v":"Date"}]
[null,"Nom du service : ",{"$f":"Lundi!C3","v":"Nom"}]
[]
[null,"DIMANCHE","7:00","8:00","9:00","10:00","11:00","12:00","13:00","14:00","15:00","Maladie ?","TOTAL"]
[null,"Nom 1","responsable","responsable","responsable","responsable","responsable","responsable","responsable","responsable","responsable",null,{"$f":"COUNTIF(Dimanche[[#This Row],[7:00]:[15:00]],\"*\")","v":9}]
[null,"Nom 2",null,"hôte de caisse","hôte de caisse","hôte de caisse","hôte de caisse",{"$nulls":5},{"$f":"COUNTIF(Dimanche[[#This Row],[7:00]:[15:00]],\"*\")","v":4}]
[null,"Nom 3",null,"réception","réception","réception","réception ","réception","réception","réception",null,null,{"$f":"COUNTIF(Dimanche[[#This Row],[7:00]:[15:00]],\"*\")","v":7}]
[null,"Nom 4",null,"réception","réception","réception","réception ","réception","réception","réception",null,null,{"$f":"COUNTIF(Dimanche[[#This Row],[7:00]:[15:00]],\"*\")","v":7}]
[null,"Nom 5",{"$nulls":9},"Maladie",{"$f":"COUNTIF(Dimanche[[#This Row],[7:00]:[15:00]],\"*\")","v":0}]